[Event "*** Titled Tuesday Blitz"]
[Site "Chess.com"]
[Date "2021.03.09"]
[Round "10"]
[White "Steegersee"]
[Black "NovikovaGalina"]
[Result "0-1"]
[WhiteElo "2267"]
[BlackElo "2403"]
[TimeControl "180+1"]
[EndTime "11:59:55 PST"]
[Termination "NovikovaGalina won by resignation"]

1. d4 {[%clk 0:02:47.2]} 1... d5 {[%clk 0:02:59.2]} 2. c4 {[%clk 0:02:47.4]}
2... Nc6 {[%clk 0:02:59.7]} 3. Nf3 {[%clk 0:02:46.3]} 3... Bg4 {[%clk
0:02:58.6]} 4. cxd5 {[%clk 0:02:46.1]} 4... Bxf3 {[%clk 0:02:58.3]} 5. gxf3
{[%clk 0:02:40]} 5... Qxd5 {[%clk 0:02:57.1]} 6. e3 {[%clk 0:02:39.8]} 6... e5
{[%clk 0:02:57.7]} 7. Nc3 {[%clk 0:02:38.8]} 7... Bb4 {[%clk 0:02:58.3]} 8. Bd2
{[%clk 0:02:30.1]} 8... Bxc3 {[%clk 0:02:58.2]} 9. bxc3 {[%clk 0:02:30.6]} 9...
Qd6 {[%clk 0:02:58.6]} 10. Qb3 {[%clk 0:02:14.2]} 10... Nge7 {[%clk 0:02:46.4]}
11. Bd3 {[%clk 0:01:56]} 11... O-O {[%clk 0:02:45.7]} 12. O-O {[%clk 0:01:55.7]}
12... b6 {[%clk 0:02:40.2]} 13. Rfd1 {[%clk 0:01:34.6]} 13... Rad8 {[%clk
0:02:38.6]} 14. Rac1 {[%clk 0:01:33.1]} 14... Ng6 {[%clk 0:02:16.2]} 15. Qa4
{[%clk 0:00:55.9]} 15... Nh4 {[%clk 0:02:05.8]} 16. Be4 {[%clk 0:00:48.8]} 16...
Ne7 {[%clk 0:01:45.7]} 17. dxe5 {[%clk 0:00:42.2]} 17... Qxe5 {[%clk 0:01:44.5]}
18. Bxh7+ {[%clk 0:00:41.8]} 18... Kxh7 {[%clk 0:01:42.3]} 19. Qxh4+ {[%clk
0:00:42.7]} 19... Kg8 {[%clk 0:01:42.7]} 20. Qe4 {[%clk 0:00:22.7]} 20... Qf6
{[%clk 0:01:37.4]} 21. c4 {[%clk 0:00:20.4]} 21... Ng6 {[%clk 0:01:26.6]} 22. f4
{[%clk 0:00:17.6]} 22... Rfe8 {[%clk 0:01:16.8]} 23. Qc2 {[%clk 0:00:17.6]}
23... Qh4 {[%clk 0:01:13.2]} 24. Qf5 {[%clk 0:00:13.9]} 24... Rd6 {[%clk
0:00:14.9]} 25. Bc3 {[%clk 0:00:11.2]} 25... Red8 {[%clk 0:00:11.2]} 26. Qc2
{[%clk 0:00:07.9]} 26... Qg4+ {[%clk 0:00:09.9]} 27. Kf1 {[%clk 0:00:03.6]}
27... Rxd1+ {[%clk 0:00:10.4]} 28. Rxd1 {[%clk 0:00:03.6]} 28... Qxd1+ {[%clk
0:00:10.9]} 29. Kg2 {[%clk 0:00:02.2]} 29... Qxc2 {[%clk 0:00:10.2]} 30. Bd4
{[%clk 0:00:02.6]} 30... Rxd4 {[%clk 0:00:09.2]} 31. exd4 {[%clk 0:00:02.1]}
31... Qxc4 {[%clk 0:00:10.1]} 32. Kf3 {[%clk 0:00:02.9]} 32... Qxd4 {[%clk
0:00:10.2]} 33. Kg3 {[%clk 0:00:03.8]} 33... Qxf4+ {[%clk 0:00:10.3]} 34. Kg2
{[%clk 0:00:04.7]} 34... Nh4+ {[%clk 0:00:09.6]} 35. Kf1 {[%clk 0:00:03.9]}
35... Nf3 {[%clk 0:00:09.2]} 36. Ke2 {[%clk 0:00:03.8]} 36... g5 {[%clk
0:00:09.3]} 37. Kd1 {[%clk 0:00:04.7]} 37... g4 {[%clk 0:00:09.7]} 38. Kc2
{[%clk 0:00:05.6]} 38... Qd2+ {[%clk 0:00:09.8]} 39. Kb3 {[%clk 0:00:04.9]}
39... c5 {[%clk 0:00:09.6]} 40. Kc4 {[%clk 0:00:05.8]} 40... Qb4+ {[%clk
0:00:09.2]} 41. Kd5 {[%clk 0:00:05.6]} 41... c4 {[%clk 0:00:09.5]} 42. Kc6
{[%clk 0:00:06.5]} 42... c3 {[%clk 0:00:10.4]} 43. Kb7 {[%clk 0:00:06.4]} 43...
c2 {[%clk 0:00:10.3]} 44. h4 {[%clk 0:00:07.3]} 44... c1=Q {[%clk 0:00:10.3]}
45. h5 {[%clk 0:00:08.2]} 45... Qe7+ {[%clk 0:00:09.9]} 46. Ka6 {[%clk
0:00:08.4]} 46... Qca3+ {[%clk 0:00:09.8]} 47. Kb5 {[%clk 0:00:09.1]} 47... Qa5+
{[%clk 0:00:10.6]} 0-1

[Event "*** Titled Tuesday Blitz"]
[Site "Chess.com"]
[Date "2021.03.09"]
[Round "10"]
[White "Nuvas"]
[Black "RobertoJBM"]
[Result "1/2-1/2"]
[WhiteElo "2573"]
[BlackElo "2711"]
[TimeControl "180+1"]
[EndTime "11:59:56 PST"]
[Termination "Game drawn - insufficient material"]

1. d4 {[%clk 0:03:00.9]} 1... d5 {[%clk 0:02:57.2]} 2. c4 {[%clk 0:03:01]} 2...
c6 {[%clk 0:02:57.1]} 3. cxd5 {[%clk 0:02:59.8]} 3... cxd5 {[%clk 0:02:56.8]} 4.
Bf4 {[%clk 0:03:00]} 4... Nc6 {[%clk 0:02:55.1]} 5. e3 {[%clk 0:02:58.6]} 5...
Qb6 {[%clk 0:02:51.7]} 6. Nc3 {[%clk 0:02:37]} 6... Qxb2 {[%clk 0:02:48.6]} 7.
Qc1 {[%clk 0:02:29.8]} 7... Qxc1+ {[%clk 0:02:47.6]} 8. Rxc1 {[%clk 0:02:30.7]}
8... e6 {[%clk 0:02:46.4]} 9. Nb5 {[%clk 0:02:24.2]} 9... Kd7 {[%clk 0:02:43.3]}
10. Nc7 {[%clk 0:02:10.9]} 10... Bb4+ {[%clk 0:02:35.1]} 11. Kd1 {[%clk
0:02:09]} 11... e5 {[%clk 0:02:29.9]} 12. Bxe5 {[%clk 0:01:56.4]} 12... Nxe5
{[%clk 0:02:26.4]} 13. Nxa8 {[%clk 0:01:56.7]} 13... Nc6 {[%clk 0:02:23.4]} 14.
Bb5 {[%clk 0:01:55.5]} 14... Ne7 {[%clk 0:02:22.3]} 15. Nf3 {[%clk 0:01:55.3]}
15... f6 {[%clk 0:02:21.3]} 16. Ke2 {[%clk 0:01:37.5]} 16... b6 {[%clk
0:02:17.8]} 17. Rc2 {[%clk 0:01:28.2]} 17... Bb7 {[%clk 0:02:17.5]} 18. Nxb6+
{[%clk 0:01:28.5]} 18... axb6 {[%clk 0:02:17.6]} 19. Rhc1 {[%clk 0:01:29.2]}
19... Kd6 {[%clk 0:02:14.6]} 20. Ne1 {[%clk 0:01:28.5]} 20... Bxe1 {[%clk
0:02:12.9]} 21. Kxe1 {[%clk 0:01:28.6]} 21... Ra8 {[%clk 0:02:11.8]} 22. a4
{[%clk 0:01:28.7]} 22... Rc8 {[%clk 0:02:02.4]} 23. Ke2 {[%clk 0:01:27.2]} 23...
h5 {[%clk 0:01:55.2]} 24. h4 {[%clk 0:01:24.5]} 24... g5 {[%clk 0:01:53.8]} 25.
hxg5 {[%clk 0:01:24.2]} 25... fxg5 {[%clk 0:01:54.2]} 26. f3 {[%clk 0:01:19.9]}
26... h4 {[%clk 0:01:52.9]} 27. Kf2 {[%clk 0:01:19.3]} 27... Rf8 {[%clk
0:01:47.5]} 28. Kg1 {[%clk 0:01:11.2]} 28... Rc8 {[%clk 0:01:39.2]} 29. Kh2
{[%clk 0:01:10.7]} 29... Na7 {[%clk 0:01:33.5]} 30. Rxc8 {[%clk 0:00:58.2]}
30... Bxc8 {[%clk 0:01:31]} 31. Bd3 {[%clk 0:00:58.3]} 31... Bd7 {[%clk
0:01:30.6]} 32. Rb1 {[%clk 0:00:56]} 32... Kc7 {[%clk 0:01:28.9]} 33. Ra1 {[%clk
0:00:52.9]} 33... Nac6 {[%clk 0:01:28.6]} 34. Rc1 {[%clk 0:00:48.4]} 34... Kd6
{[%clk 0:01:27.7]} 35. Rb1 {[%clk 0:00:45.9]} 35... Nc8 {[%clk 0:01:25.5]} 36.
g3 {[%clk 0:00:39.9]} 36... hxg3+ {[%clk 0:01:24.6]} 37. Kxg3 {[%clk 0:00:40.8]}
37... Na5 {[%clk 0:01:24.6]} 38. Bb5 {[%clk 0:00:40.8]} 38... Bxb5 {[%clk
0:01:20.4]} 39. Rxb5 {[%clk 0:00:23.9]} 39... Nc4 {[%clk 0:01:21.3]} 40. e4
{[%clk 0:00:24.1]} 40... Ne7 {[%clk 0:01:17.1]} 41. Kg4 {[%clk 0:00:20.8]} 41...
dxe4 {[%clk 0:01:12.5]} 42. fxe4 {[%clk 0:00:21.3]} 42... Nc6 {[%clk 0:00:55.5]}
43. Kxg5 {[%clk 0:00:21.1]} 43... Nd2 {[%clk 0:00:45.5]} 44. e5+ {[%clk
0:00:20.4]} 44... Kc7 {[%clk 0:00:42.1]} 45. Kf4 {[%clk 0:00:18.9]} 45... Nxd4
{[%clk 0:00:39]} 46. Rd5 {[%clk 0:00:19.5]} 46... N2b3 {[%clk 0:00:39.3]} 47.
Kg5 {[%clk 0:00:17.1]} 47... Ne6+ {[%clk 0:00:38.6]} 48. Kf6 {[%clk 0:00:17.6]}
48... Nbc5 {[%clk 0:00:39]} 49. Rd1 {[%clk 0:00:16.8]} 49... Nf4 {[%clk
0:00:38.6]} 50. Rc1 {[%clk 0:00:14.8]} 50... Nd3 {[%clk 0:00:38.3]} 51. Rc3
{[%clk 0:00:14.8]} 51... Nb4 {[%clk 0:00:37.2]} 52. Rc4 {[%clk 0:00:13.4]} 52...
Nd5+ {[%clk 0:00:37.2]} 53. Kf7 {[%clk 0:00:14]} 53... Kc6 {[%clk 0:00:38]} 54.
e6 {[%clk 0:00:14.3]} 54... Kd6 {[%clk 0:00:38.4]} 55. Rd4 {[%clk 0:00:14]}
55... Nxe6 {[%clk 0:00:37.9]} 56. Rd1 {[%clk 0:00:12.5]} 56... Nc5 {[%clk
0:00:37.5]} 57. Rd4 {[%clk 0:00:12.9]} 57... Kc6 {[%clk 0:00:37.4]} 58. Ke8
{[%clk 0:00:12.2]} 58... Nc3 {[%clk 0:00:37.5]} 59. Kd8 {[%clk 0:00:11.5]} 59...
N3xa4 {[%clk 0:00:37.6]} 60. Rb4 {[%clk 0:00:11.7]} 60... Nc3 {[%clk 0:00:37.5]}
61. Rxb6+ {[%clk 0:00:12]} 61... Kxb6 {[%clk 0:00:37.1]} 1/2-1/2

[Event "*** Titled Tuesday Blitz"]
[Site "Chess.com"]
[Date "2021.03.09"]
[Round "10"]
[White "KetiGrant"]
[Black "arminmusovic"]
[Result "0-1"]
[WhiteElo "2347"]
[BlackElo "2490"]
[TimeControl "180+1"]
[EndTime "11:59:57 PST"]
[Termination "arminmusovic won on time"]

1. e4 {[%clk 0:03:00.9]} 1... c6 {[%clk 0:02:58.4]} 2. d4 {[%clk 0:03:00.2]}
2... d5 {[%clk 0:02:59.3]} 3. e5 {[%clk 0:02:58.4]} 3... c5 {[%clk 0:02:59.5]}
4. dxc5 {[%clk 0:02:57.2]} 4... Nc6 {[%clk 0:03:00]} 5. Bb5 {[%clk 0:02:55.7]}
5... Nh6 {[%clk 0:02:59.5]} 6. c3 {[%clk 0:02:41.8]} 6... a6 {[%clk 0:02:56.4]}
7. Bxc6+ {[%clk 0:02:34.7]} 7... bxc6 {[%clk 0:02:57.3]} 8. Nd2 {[%clk 0:02:30]}
8... Qc7 {[%clk 0:02:53.8]} 9. f4 {[%clk 0:02:27.6]} 9... Bg4 {[%clk 0:02:53.1]}
10. Ngf3 {[%clk 0:02:21.7]} 10... e6 {[%clk 0:02:53.3]} 11. Nb3 {[%clk
0:02:20.7]} 11... Be7 {[%clk 0:02:50.2]} 12. h3 {[%clk 0:02:19.2]} 12... Bh4+
{[%clk 0:02:47.6]} 13. Kf1 {[%clk 0:02:17.6]} 13... Bxf3 {[%clk 0:02:47.7]} 14.
Qxf3 {[%clk 0:02:17.1]} 14... O-O {[%clk 0:02:46.9]} 15. g3 {[%clk 0:02:16.2]}
15... Be7 {[%clk 0:02:41.6]} 16. Kg2 {[%clk 0:02:15.8]} 16... a5 {[%clk
0:02:39.7]} 17. Be3 {[%clk 0:02:14.3]} 17... f6 {[%clk 0:02:37.6]} 18. Nd4
{[%clk 0:02:04.9]} 18... Qd7 {[%clk 0:02:33.1]} 19. exf6 {[%clk 0:02:03.2]}
19... Rxf6 {[%clk 0:02:29.3]} 20. Ne2 {[%clk 0:01:47.3]} 20... e5 {[%clk
0:02:19.4]} 21. Qh5 {[%clk 0:01:45.9]} 21... Rf5 {[%clk 0:02:09.2]} 22. Qf3
{[%clk 0:01:44.4]} 22... Raf8 {[%clk 0:01:57.2]} 23. Bf2 {[%clk 0:01:19.2]}
23... R5f7 {[%clk 0:01:48]} 24. Qd3 {[%clk 0:01:04]} 24... exf4 {[%clk
0:01:42.7]} 25. gxf4 {[%clk 0:00:58.3]} 25... Nf5 {[%clk 0:01:33]} 26. Kh2
{[%clk 0:00:57]} 26... Bh4 {[%clk 0:01:26.1]} 27. Bxh4 {[%clk 0:00:49.5]} 27...
Nxh4 {[%clk 0:01:27]} 28. Rhg1 {[%clk 0:00:49.7]} 28... Kh8 {[%clk 0:01:26.6]}
29. Rg4 {[%clk 0:00:49]} 29... Nf5 {[%clk 0:01:12.9]} 30. Rag1 {[%clk
0:00:48.5]} 30... g6 {[%clk 0:01:13.1]} 31. Nd4 {[%clk 0:00:47.3]} 31... Re8
{[%clk 0:01:10.2]} 32. Nxf5 {[%clk 0:00:40.9]} 32... Rxf5 {[%clk 0:01:10.2]} 33.
Qd4+ {[%clk 0:00:38.7]} 33... Qg7 {[%clk 0:01:10.3]} 34. Qxg7+ {[%clk 0:00:29]}
34... Kxg7 {[%clk 0:01:11.2]} 35. b4 {[%clk 0:00:28.5]} 35... axb4 {[%clk
0:01:10.1]} 36. cxb4 {[%clk 0:00:28.3]} 36... Ra8 {[%clk 0:01:09.3]} 37. R1g2
{[%clk 0:00:26]} 37... Ra3 {[%clk 0:01:04.6]} 38. R4g3 {[%clk 0:00:23.1]} 38...
Ra4 {[%clk 0:01:04.1]} 39. a3 {[%clk 0:00:14.9]} 39... Rxf4 {[%clk 0:01:03.6]}
40. Re3 {[%clk 0:00:15]} 40... Re4 {[%clk 0:01:00.9]} 41. Rge2 {[%clk 0:00:13]}
41... Rxe3 {[%clk 0:00:54.2]} 42. Rxe3 {[%clk 0:00:13.2]} 42... Kf6 {[%clk
0:00:55.1]} 43. Kg3 {[%clk 0:00:12.5]} 43... d4 {[%clk 0:00:54.2]} 44. Rd3
{[%clk 0:00:12]} 44... Ke5 {[%clk 0:00:54.6]} 45. Kf3 {[%clk 0:00:12.6]} 45...
g5 {[%clk 0:00:53.6]} 46. Kg4 {[%clk 0:00:11.7]} 46... Ke4 {[%clk 0:00:52.4]}
47. Rb3 {[%clk 0:00:10.6]} 47... d3 {[%clk 0:00:52.4]} 48. Kxg5 {[%clk
0:00:10.2]} 48... d2 {[%clk 0:00:52.8]} 49. Rb1 {[%clk 0:00:10]} 49... Rxa3
{[%clk 0:00:53.2]} 50. h4 {[%clk 0:00:07.9]} 50... Rb3 {[%clk 0:00:36.8]} 51.
Rd1 {[%clk 0:00:05.8]} 51... Kd3 {[%clk 0:00:36.8]} 52. Kh6 {[%clk 0:00:05.5]}
52... Rxb4 {[%clk 0:00:37.3]} 53. h5 {[%clk 0:00:04.5]} 53... Rc4 {[%clk
0:00:37]} 54. Kxh7 {[%clk 0:00:03]} 54... Rxc5 {[%clk 0:00:37.5]} 55. h6 {[%clk
0:00:02.9]} 55... Rh5 {[%clk 0:00:37.4]} 56. Kg6 {[%clk 0:00:02]} 56... Rh2
{[%clk 0:00:37.7]} 57. h7 {[%clk 0:00:01.4]} 57... Ke2 {[%clk 0:00:33.9]} 0-1

[Event "*** Titled Tuesday Blitz"]
[Site "Chess.com"]
[Date "2021.03.09"]
[Round "10"]
[White "Tooweak2slow03"]
[Black "anon219"]
[Result "1/2-1/2"]
[WhiteElo "2786"]
[BlackElo "2877"]
[TimeControl "180+1"]
[EndTime "11:59:59 PST"]
[Termination "Game drawn by repetition"]

1. e4 {[%clk 0:03:00.9]} 1... c5 {[%clk 0:02:58.3]} 2. Nf3 {[%clk 0:03:00.7]}
2... a6 {[%clk 0:02:57.3]} 3. c4 {[%clk 0:02:59.5]} 3... Nc6 {[%clk 0:02:56.7]}
4. d4 {[%clk 0:02:59.3]} 4... cxd4 {[%clk 0:02:56.6]} 5. Nxd4 {[%clk 0:03:00.2]}
5... e5 {[%clk 0:02:56.5]} 6. Nf5 {[%clk 0:02:56.9]} 6... d6 {[%clk 0:02:56.7]}
7. Ne3 {[%clk 0:02:44.8]} 7... Nf6 {[%clk 0:02:53.5]} 8. Nc3 {[%clk 0:02:43.7]}
8... g6 {[%clk 0:02:52.8]} 9. h4 {[%clk 0:02:40.5]} 9... Be6 {[%clk 0:02:47.8]}
10. Be2 {[%clk 0:02:37.2]} 10... Nd4 {[%clk 0:02:43.4]} 11. h5 {[%clk
0:02:34.4]} 11... Nxe2 {[%clk 0:02:30.2]} 12. Qxe2 {[%clk 0:02:35.3]} 12... Nxh5
{[%clk 0:02:29.6]} 13. Rxh5 {[%clk 0:02:30.2]} 13... gxh5 {[%clk 0:02:28.9]} 14.
Qxh5 {[%clk 0:02:31.1]} 14... Rc8 {[%clk 0:02:18.8]} 15. b3 {[%clk 0:02:26.5]}
15... b5 {[%clk 0:02:15.1]} 16. Ncd5 {[%clk 0:02:21.4]} 16... bxc4 {[%clk
0:02:10.3]} 17. bxc4 {[%clk 0:02:19.9]} 17... Be7 {[%clk 0:02:05.6]} 18. Qh6
{[%clk 0:02:10.4]} 18... Rg8 {[%clk 0:01:49.5]} 19. Qxh7 {[%clk 0:02:05.8]}
19... Kd7 {[%clk 0:01:49.8]} 20. Ke2 {[%clk 0:01:52.9]} 20... Rb8 {[%clk
0:01:42.9]} 21. Bd2 {[%clk 0:01:37.2]} 21... Rb2 {[%clk 0:01:34.5]} 22. c5
{[%clk 0:01:22]} 22... Bg5 {[%clk 0:01:28.5]} 23. Rc1 {[%clk 0:01:14.4]} 23...
dxc5 {[%clk 0:01:18.3]} 24. Rxc5 {[%clk 0:01:13.1]} 24... Kd6 {[%clk 0:01:14.2]}
25. Rc3 {[%clk 0:01:04.2]} 25... Bxd5 {[%clk 0:01:10.4]} 26. exd5 {[%clk
0:01:00.6]} 26... Bxe3 {[%clk 0:01:05.5]} 27. Rxe3 {[%clk 0:01:01.5]} 27... Qg5
{[%clk 0:01:01.8]} 28. Qxf7 {[%clk 0:00:49.1]} 28... Qg4+ {[%clk 0:01:01.9]} 29.
Rf3 {[%clk 0:00:32.3]} 29... Qe4+ {[%clk 0:00:55.9]} 30. Re3 {[%clk 0:00:31.3]}
30... Qc4+ {[%clk 0:00:48.5]} 31. Rd3 {[%clk 0:00:28.4]} 31... Rc8 {[%clk
0:00:46.7]} 32. Qf6+ {[%clk 0:00:23.4]} 32... Kc5 {[%clk 0:00:44.6]} 33. Qe7+
{[%clk 0:00:22.2]} 33... Kb6 {[%clk 0:00:42.2]} 34. Qxe5 {[%clk 0:00:21.1]}
34... Qb5 {[%clk 0:00:34.7]} 35. Qe3+ {[%clk 0:00:19.7]} 35... Kb7 {[%clk
0:00:33.2]} 36. Kf3 {[%clk 0:00:20.1]} 36... Rf8+ {[%clk 0:00:30.4]} 37. Kg3
{[%clk 0:00:19.2]} 37... Re8 {[%clk 0:00:21.6]} 38. Qf3 {[%clk 0:00:14.8]} 38...
Rg8+ {[%clk 0:00:14.7]} 39. Kh3 {[%clk 0:00:13.3]} 39... Qd7+ {[%clk 0:00:13.2]}
40. g4 {[%clk 0:00:13.9]} 40... Qh7+ {[%clk 0:00:08.8]} 41. Kg3 {[%clk
0:00:13.7]} 41... Rh8 {[%clk 0:00:04.6]} 42. d6+ {[%clk 0:00:13.9]} 42... Ka7
{[%clk 0:00:03.2]} 43. Qe3+ {[%clk 0:00:12.3]} 43... Kb8 {[%clk 0:00:03.1]} 44.
Rb3+ {[%clk 0:00:09.6]} 44... Rxb3 {[%clk 0:00:03.6]} 45. Qxb3+ {[%clk
0:00:10.5]} 45... Kc8 {[%clk 0:00:04.1]} 46. Qe6+ {[%clk 0:00:08.8]} 46... Kb8
{[%clk 0:00:04.5]} 47. Qb3+ {[%clk 0:00:08.5]} 47... Ka8 {[%clk 0:00:04.9]} 48.
Qf3+ {[%clk 0:00:07.4]} 48... Kb8 {[%clk 0:00:04.7]} 49. Qb3+ {[%clk 0:00:07.5]}
1/2-1/2

[Event "*** Titled Tuesday Blitz"]
[Site "Chess.com"]
[Date "2021.03.09"]
[Round "10"]
[White "Bastiandash"]
[Black "Guzman70"]
[Result "1-0"]
[WhiteElo "2465"]
[BlackElo "2342"]
[TimeControl "180+1"]
[EndTime "12:00:00 PST"]
[Termination "Bastiandash won by resignation"]

1. e4 {[%clk 0:03:00.9]} 1... c6 {[%clk 0:02:59]} 2. d4 {[%clk 0:03:00.7]} 2...
d5 {[%clk 0:02:59.3]} 3. exd5 {[%clk 0:02:59.6]} 3... cxd5 {[%clk 0:03:00.2]} 4.
Bd3 {[%clk 0:03:00.4]} 4... Nc6 {[%clk 0:02:59.8]} 5. c3 {[%clk 0:02:59.6]} 5...
g6 {[%clk 0:02:58.7]} 6. Ne2 {[%clk 0:02:57.5]} 6... Nf6 {[%clk 0:02:49.5]} 7.
O-O {[%clk 0:02:56.7]} 7... Bg7 {[%clk 0:02:48.6]} 8. f4 {[%clk 0:02:54.8]} 8...
Bf5 {[%clk 0:02:46.6]} 9. Qc2 {[%clk 0:02:54.4]} 9... e6 {[%clk 0:02:42.7]} 10.
Ng3 {[%clk 0:02:49]} 10... O-O {[%clk 0:02:40.5]} 11. Be3 {[%clk 0:02:45.4]}
11... Rc8 {[%clk 0:02:39.6]} 12. Qe2 {[%clk 0:02:35.6]} 12... a6 {[%clk
0:02:28.6]} 13. Nd2 {[%clk 0:02:32]} 13... b5 {[%clk 0:02:28]} 14. a3 {[%clk
0:02:32.4]} 14... Na5 {[%clk 0:02:25.1]} 15. Nxf5 {[%clk 0:02:05.4]} 15... exf5
{[%clk 0:02:23.3]} 16. Nf3 {[%clk 0:02:05.2]} 16... Nc4 {[%clk 0:02:19.6]} 17.
Bxc4 {[%clk 0:02:03.2]} 17... dxc4 {[%clk 0:02:18.3]} 18. Rad1 {[%clk 0:01:57]}
18... Qd5 {[%clk 0:02:15]} 19. Bf2 {[%clk 0:01:53.8]} 19... Ne4 {[%clk
0:02:13.4]} 20. Qc2 {[%clk 0:01:51.7]} 20... Rfe8 {[%clk 0:02:05.9]} 21. Rfe1
{[%clk 0:01:51.6]} 21... Re6 {[%clk 0:01:59.3]} 22. Re2 {[%clk 0:01:40.9]} 22...
Rce8 {[%clk 0:01:58.5]} 23. Rde1 {[%clk 0:01:41.3]} 23... f6 {[%clk 0:01:56.1]}
24. Qd1 {[%clk 0:01:06.3]} 24... Kf7 {[%clk 0:01:52.5]} 25. Nd2 {[%clk
0:01:03.6]} 25... Nxd2 {[%clk 0:01:50.1]} 26. Rxe6 {[%clk 0:01:00.1]} 26... Rxe6
{[%clk 0:01:44.3]} 27. Qxd2 {[%clk 0:00:59.6]} 27... Rxe1+ {[%clk 0:01:37.5]}
28. Qxe1 {[%clk 0:01:00.5]} 28... Qe4 {[%clk 0:01:37.8]} 29. Qxe4 {[%clk
0:00:59.1]} 29... fxe4 {[%clk 0:01:38.7]} 30. g4 {[%clk 0:01:00]} 30... f5
{[%clk 0:01:37.6]} 31. h3 {[%clk 0:00:59.8]} 31... Ke6 {[%clk 0:01:35.8]} 32.
Bh4 {[%clk 0:00:51.9]} 32... Bf8 {[%clk 0:01:30.5]} 33. Kf2 {[%clk 0:00:51.3]}
33... Bd6 {[%clk 0:01:29.5]} 34. Ke3 {[%clk 0:00:50.4]} 34... Bc7 {[%clk
0:01:24.8]} 35. Bg5 {[%clk 0:00:45.7]} 35... Kd5 {[%clk 0:01:16.9]} 36. Bh6
{[%clk 0:00:45.4]} 36... Bd6 {[%clk 0:01:14.5]} 37. Bg7 {[%clk 0:00:44.9]} 37...
a5 {[%clk 0:00:54.1]} 38. Be5 {[%clk 0:00:43.8]} 38... Be7 {[%clk 0:00:49.3]}
39. g5 {[%clk 0:00:40.1]} 39... b4 {[%clk 0:00:48]} 40. axb4 {[%clk 0:00:38.6]}
40... axb4 {[%clk 0:00:47.4]} 41. Bf6 {[%clk 0:00:18.3]} 41... b3 {[%clk
0:00:44.6]} 42. Bxe7 {[%clk 0:00:17.6]} 42... Ke6 {[%clk 0:00:44]} 43. Bf8
{[%clk 0:00:14.1]} 43... Kd5 {[%clk 0:00:44.3]} 44. Bc5 {[%clk 0:00:13]} 44...
Ke6 {[%clk 0:00:44.3]} 45. Bb6 {[%clk 0:00:13.1]} 45... Kd5 {[%clk 0:00:44.6]}
46. Kf2 {[%clk 0:00:13.6]} 46... Ke6 {[%clk 0:00:44.9]} 47. h4 {[%clk
0:00:13.9]} 47... Kd5 {[%clk 0:00:45.2]} 48. h5 {[%clk 0:00:14.1]} 48... Ke6
{[%clk 0:00:45.1]} 49. hxg6 {[%clk 0:00:10.9]} 49... hxg6 {[%clk 0:00:44.6]} 50.
Ke3 {[%clk 0:00:10.2]} 50... Kd6 {[%clk 0:00:43.6]} 51. Ba7 {[%clk 0:00:10.4]}
51... Kd5 {[%clk 0:00:42.1]} 52. Bb6 {[%clk 0:00:09.5]} 52... Kc6 {[%clk
0:00:42.4]} 53. Bd8 {[%clk 0:00:08.9]} 53... Kd5 {[%clk 0:00:42.7]} 54. Bf6
{[%clk 0:00:09.2]} 54... Ke6 {[%clk 0:00:43.1]} 55. Bg7 {[%clk 0:00:05.5]} 55...
Kd5 {[%clk 0:00:44]} 56. Bf8 {[%clk 0:00:06]} 56... Ke6 {[%clk 0:00:44.5]} 57.
d5+ {[%clk 0:00:06.3]} 57... Kxd5 {[%clk 0:00:45.4]} 58. Bb4 {[%clk 0:00:06.3]}
58... Kc6 {[%clk 0:00:44.2]} 59. Kd4 {[%clk 0:00:06.8]} 59... Kb5 {[%clk
0:00:44.2]} 60. Bd6 {[%clk 0:00:05.4]} 60... Kc6 {[%clk 0:00:43.9]} 61. Bb8
{[%clk 0:00:04.5]} 61... Kb7 {[%clk 0:00:43.7]} 62. Be5 {[%clk 0:00:02.7]} 1-0

[Event "*** Titled Tuesday Blitz"]
[Site "Chess.com"]
[Date "2021.03.09"]
[Round "10"]
[White "goldihouse"]
[Black "Durarbayli"]
[Result "1-0"]
[WhiteElo "2612"]
[BlackElo "2688"]
[TimeControl "180+1"]
[EndTime "12:00:01 PST"]
[Termination "goldihouse won on time"]

1. c4 {[%clk 0:03:00.9]} 1... c6 {[%clk 0:02:58.1]} 2. g3 {[%clk 0:03:01.8]}
2... d5 {[%clk 0:02:59]} 3. Nf3 {[%clk 0:03:02.1]} 3... Nf6 {[%clk 0:02:58.7]}
4. Bg2 {[%clk 0:03:02.5]} 4... g6 {[%clk 0:02:56.7]} 5. b3 {[%clk 0:03:01.6]}
5... Bg7 {[%clk 0:02:56.3]} 6. Bb2 {[%clk 0:03:02.1]} 6... O-O {[%clk
0:02:56.2]} 7. O-O {[%clk 0:03:02]} 7... a5 {[%clk 0:02:54.8]} 8. Nc3 {[%clk
0:03:01.2]} 8... Ne4 {[%clk 0:02:30.9]} 9. Qc1 {[%clk 0:03:00.1]} 9... Nxc3
{[%clk 0:02:27.3]} 10. Bxc3 {[%clk 0:03:01]} 10... d4 {[%clk 0:02:27.2]} 11. Bb2
{[%clk 0:03:01]} 11... e5 {[%clk 0:02:18.9]} 12. e3 {[%clk 0:02:46.4]} 12... Na6
{[%clk 0:02:16]} 13. exd4 {[%clk 0:02:40.2]} 13... exd4 {[%clk 0:02:15.3]} 14.
d3 {[%clk 0:02:29.4]} 14... Bf5 {[%clk 0:02:13.4]} 15. Qd2 {[%clk 0:02:18.1]}
15... Nb4 {[%clk 0:02:12.2]} 16. Ne1 {[%clk 0:02:17.2]} 16... Re8 {[%clk
0:02:07.1]} 17. a3 {[%clk 0:02:13.4]} 17... Na6 {[%clk 0:02:06.7]} 18. b4 {[%clk
0:02:08.6]} 18... Qe7 {[%clk 0:01:53.3]} 19. Nc2 {[%clk 0:02:07]} 19... Qe2
{[%clk 0:01:52]} 20. Rfd1 {[%clk 0:02:02.7]} 20... Rad8 {[%clk 0:01:30.7]} 21.
Bf1 {[%clk 0:01:34.2]} 21... Qh5 {[%clk 0:01:13.2]} 22. Re1 {[%clk 0:01:27.6]}
22... Rxe1 {[%clk 0:00:54.9]} 23. Rxe1 {[%clk 0:01:26.8]} 23... axb4 {[%clk
0:00:55.4]} 24. axb4 {[%clk 0:01:25.9]} 24... Nc7 {[%clk 0:00:55.5]} 25. f4
{[%clk 0:01:02.1]} 25... Ne6 {[%clk 0:00:48.5]} 26. Bg2 {[%clk 0:00:54]} 26...
Bh3 {[%clk 0:00:38.4]} 27. Ra1 {[%clk 0:00:35]} 27... Bxg2 {[%clk 0:00:35.5]}
28. Qxg2 {[%clk 0:00:29.2]} 28... Qf5 {[%clk 0:00:34.5]} 29. Qe2 {[%clk
0:00:24.9]} 29... h5 {[%clk 0:00:32.6]} 30. Ne1 {[%clk 0:00:22.2]} 30... h4
{[%clk 0:00:25.5]} 31. Nf3 {[%clk 0:00:21.3]} 31... Qg4 {[%clk 0:00:20.5]} 32.
Kf2 {[%clk 0:00:19.9]} 32... hxg3+ {[%clk 0:00:19.3]} 33. hxg3 {[%clk
0:00:20.8]} 33... Re8 {[%clk 0:00:18.1]} 34. Qd2 {[%clk 0:00:18.2]} 34... Bf6
{[%clk 0:00:14.7]} 35. Re1 {[%clk 0:00:17.2]} 35... Kg7 {[%clk 0:00:13.6]} 36.
Rh1 {[%clk 0:00:16.2]} 36... Kg8 {[%clk 0:00:12.7]} 37. Rh2 {[%clk 0:00:12.1]}
37... Ng7 {[%clk 0:00:11.7]} 38. Bxd4 {[%clk 0:00:10]} 38... Nh5 {[%clk
0:00:08.3]} 39. Rg2 {[%clk 0:00:09.2]} 39... Bxd4+ {[%clk 0:00:05.5]} 40. Nxd4
{[%clk 0:00:08.8]} 40... Rd8 {[%clk 0:00:06.4]} 41. Nf3 {[%clk 0:00:08.8]} 41...
Nf6 {[%clk 0:00:04.3]} 42. Ne5 {[%clk 0:00:08.9]} 42... Qf5 {[%clk 0:00:04.6]}
43. Qe3 {[%clk 0:00:08.6]} 43... Ra8 {[%clk 0:00:03]} 44. Kg1 {[%clk 0:00:08.3]}
44... Ra1+ {[%clk 0:00:02.5]} 45. Kf2 {[%clk 0:00:08.2]} 45... Qh5 {[%clk
0:00:02.9]} 46. Qf3 {[%clk 0:00:07.9]} 46... Qf5 {[%clk 0:00:02.6]} 47. Rg1
{[%clk 0:00:06.7]} 1-0